Cogmind - Beta 11 X8 @@@ ROGUE MODE // 2021.10.25 @ 02:42:22 Player: Runia Result: Destroyed by 8R-AWN with 8R-AWN's Boregun Performance ------------- Evolutions (0) 0 Regions Visited (3) 600 Robots Destroyed (32) 160 Value Destroyed (469) 469 Prototype IDs (25) 500 Alien Tech Used (0) 0 Bonus (308) 308 TOTAL SCORE: 2037 Bonus ------- High Alert Combat Kills 8 Aligned with FarCom 300 Cogmind --------- Core Integrity 0/250 Matter 247/300 Energy 218/265 System Corruption 0% Temperature Cool (0) Movement Treading (160) Location -10/Exiles Parts ------- > --- POWER (1) -------- Improved Ion Engine > --- PROPULSION (2) --- Light Treads Light Treads > --- UTILITY (2) ------ Large Storage Unit Light Armor Plating > --- WEAPON (2) ------- Heavy Assault Rifle Longsword +1 > --- INVENTORY (15) --- Light Treads Light Treads Light Treads Large Matter Pod (110) Light Armor Plating Grenade Launcher Grenade Launcher Grenade Launcher Grenade Launcher Makeshift Hammer Peak State ------------ > --- POWER ------------ Improved Ion Engine > --- PROPULSION ------- Light Treads Light Treads > --- UTILITY ---------- Large Storage Unit Light Armor Plating > --- WEAPON ----------- Grenade Launcher Longsword +1 > --- INVENTORY -------- Improved Ion Engine Reinforced Deuterium Engine Fission Core Fission Core Light Treads Light Treads Light Treads Large Matter Pod Light Armor Plating Light Armor Plating Heavy Assault Rifle Grenade Launcher Grenade Launcher Grenade Launcher Makeshift Hammer [Rating: 18] Favorites ----------- Power Improved Ion Engine Engine Improved Ion Engine Propulsion Light Treads Treads Light Treads Leg Aluminum Leg Utility Large Storage Unit Storage Large Storage Unit Protection Light Armor Plating Weapon Grenade Launcher Energy Gun Medium Laser Ballistic Gun Light Assault Rifle Launcher Grenade Launcher Slashing Weapon Longsword +1 Build | -11 -10 -10 -10 ------- Run | Scr Mat Min Exi Slots Evolved . | . . . . Power . | . . . . Propulsion . | . . . . Utility . | . . . . Weapon . | . . . . Parts Attached 26 | . 15 2 9 Power 4 | . 3 . 1 Engine 4 | . 3 . 1 Core . | . . . . Reactor . | . . . . Propulsion 5 | . 4 1 . Treads 5 | . 4 1 . Leg . | . . . . Wheel . | . . . . Hover . | . . . . Flight . | . . . . Utility 7 | . 2 1 4 Device . | . . . . Storage 3 | . 1 . 2 Processor . | . . . . Hackware . | . . . . Protection 4 | . 1 1 2 Artifact . | . . . . Weapon 10 | . 6 . 4 Energy Gun 2 | . 2 . . Energy Cannon . | . . . . Ballistic Gun 3 | . 1 . 2 Ballistic Cannon . | . . . . Launcher 3 | . 3 . . Special Weapon . | . . . . Impact Weapon . | . . . . Slashing Weapon 2 | . . . 2 Piercing Weapon . | . . . . Special Melee Weapon . | . . . . Unidentified Prototypes . | . . . . Parts Lost 2 | . . . 2 Power 1 | . . . 1 Propulsion . | . . . . Utility 1 | . . . 1 Weapon . | . . . . Highest Loss Streak 2 | . . . 2 Average Slot Usage (%) 96 | . 94 100 95 Engine 14 | . 14 14 14 Treads 26 | . 24 28 28 Storage 13 | . 14 14 13 Protection 11 | . 9 14 12 Energy Gun 6 | . 19 . . Ballistic Gun 10 | . 8 14 9 Launcher 8 | . . 14 12 Slashing Weapon 1 | . . . 3 Naked Turns . | . . . . Heaviest Build 210 | 11 34 34 210 Greatest Support 40 | 20 40 40 40 Greatest Overweight (x) 5 | . . . 5 Average Overweight (x) . | . . . . Largest Inventory Capacity 35 | 8 15 15 35 Average Capacity 15 | 8 13 15 16 Most Carried 15 | 5 14 15 15 Average Carried 11 | 5 8 14 12 Final Capacity 15 | 8 15 15 15 Final Carried 15 | 4 14 15 10 Class Distribution -------------------- 94% | Mutant 5% | Hauler-Mutant Dominant Class ---------------- Mutant | -10/Materials Mutant | -10/Mines Mutant | -10/Exiles Resources | -11 -10 -10 -10 ----------- Run | Scr Mat Min Exi Matter Collected 713 | 200 269 194 50 Remotely . | . . . . Salvage Created 678 | . 660 18 . Parts 59 | . 55 4 . Haulers Intercepted 2 | . 2 . . Recyclers Shooed 2 | . 2 . . Parts Field Recycled . | . . . . Retrieved Matter . | . . . . Parts Self-Destructed . | . . . . Prevented . | . . . . Kills | -11 -10 -10 -10 ------- Run | Scr Mat Min Exi Combat Hostiles Destroyed 23 | . 16 5 2 Guns 11 | . 11 . . AOE 12 | . 5 5 2 Classes Destroyed 9 | . 8 . 1 Worker 1 | . 1 . . Builder 2 | . 2 . . Hauler 2 | . 2 . . Recycler 2 | . 2 . . Operator 1 | . 1 . . Watcher 3 | . 3 . . Swarmer 14 | . 9 5 . Grunt 7 | . 7 . . Assembled 2 | . . . 2 Best Kill Streak 5 | . 5 3 2 Combat Bots Only 3 | . 3 3 2 Max Kills in Single Turn 3 | . 2 3 1 Gunslinging . | . . . . Exploded 3 | . 1 3 1 Melee . | . . . . Uniques/NPCs Destroyed . | . . . . Combat | -11 -10 -10 -10 -------- Run | Scr Mat Min Exi Damage Taken 1295 | . 414 89 792 Core 260 | . 24 . 236 Absorbed by Shields . | . . . . Core Remaining (%) 100 | 100 . . . Volleys Fired 66 | . 59 4 3 Largest 2 | . 2 1 1 Hottest 90 | . 90 30 30 Shots Fired 116 | . 109 4 3 Gun 101 | . 100 . 1 Cannon . | . . . . Launcher 15 | . 9 4 2 Special . | . . . . Kinetic 14 | . 13 . 1 Thermal 87 | . 87 . . Explosive 15 | . 9 4 2 Electromagnetic . | . . . . Robot Hit Streak 14 | . 14 1 . Robot Miss Streak 3 | . 3 2 . Penetration Max . | . . . . Secondary Targets . | . . . . Shots Hit Robots 96 | . 70 1 25 Core Hits 61 | . 45 6 10 Critical Kills . | . . . . Critical Parts Destroyed . | . . . . Critical Strikes 3 | . 2 . 1 Burn 2 | . 2 . . Sever 1 | . . . 1 Melee Attacks 26 | . . . 26 Impact . | . . . . Slashing 26 | . . . 26 Piercing . | . . . . Sneak Attacks . | . . . . Combat Hostiles . | . . . . Follow-up Attacks . | . . . . Damage Inflicted 2668 | . 1207 251 1210 Guns 753 | . 753 . . Cannons . | . . . . Explosions 816 | . 454 251 111 Melee 1099 | . . . 1099 Ramming . | . . . . Kinetic 75 | . 75 . . Thermal 678 | . 678 . . Explosive 816 | . 454 251 111 Electromagnetic . | . . . . Impact . | . . . . Slashing 1099 | . . . 1099 Piercing . | . . . . Highest Corruption . | . . . . Average Corruption . | . . . . Corruption Purged . | . . . . Overload Shots . | . . . . Overflow Damage 9 | . 9 . . Projectiles . | . . . . Explosions 9 | . 9 . . Melee . | . . . . Knockbacks . | . . . . Impact . | . . . . Kinetic . | . . . . Secondary . | . . . . Self-Inflicted Damage 103 | . 62 41 . Shots 4 | . 2 2 . Rammed . | . . . . Targets Rammed . | . . . . Kicked . | . . . . Crushed . | . . . . Highest Temperature 210 | . 210 . . Average Temperature 69 | . 69 . . Received Heat Transfer 72 | . 72 . . Siege Activations . | . . . . Robots Corrupted . | . . . . Combat Hostiles . | . . . . Parts Fried . | . . . . Impact Corruptions . | . . . . Robots Melted . | . . . . Combat Hostiles . | . . . . Parts Melted 7 | . 7 . . Heat Transferred 1969 | . 1969 . . Parts Sabotaged . | . . . . Parts Stolen . | . . . . Parts Stripped . | . . . . Power Chain Reactions . | . . . . Missiles Intercepted . | . . . . Alert | -11 -10 -10 -10 ------- Run | Scr Mat Min Exi Peak Influence 423 | . 423 235 . Initial 125 | . . 125 . Average 216 | . 252 163 . Maximum Alert Level 2 | . 2 1 . Low Security (%) 32 | 100 26 40 . Level 1 66 | . 71 59 . Level 2 1 | . 2 . . Level 3 . | . . . . Level 4 . | . . . . Level 5 . | . . . . High Security . | . . . . Max Security . | . . . . Squads Dispatched 3 | . 3 . . Investigation 2 | . 2 . . Extermination . | . . . . Reinforcement 1 | . 1 . . Assault . | . . . . Garrison . | . . . . Intercept . | . . . . Construction Impeded . | . . . . Haulers Reinforced . | . . . . Active Scanning Responses . | . . . . Cargo Convoy Interrupts . | . . . . Stealth | -11 -10 -10 -10 --------- Run | Scr Mat Min Exi Distress Signals 3 | . 3 . . Communications Jammed . | . . . . Distress Signals . | . . . . Times Spotted 37 | . 27 4 6 Peak Tracking Total 10 | . 4 3 10 Tactical Retreats 4 | . 3 . 1 Traps | -11 -10 -10 -10 ------- Run | Scr Mat Min Exi Traps Triggered . | . . . . Indirectly . | . . . . Trap Hack Attempts . | . . . . Triggered . | . . . . Disarmed . | . . . . Reprogrammed . | . . . . Reused . | . . . . Traps Extracted . | . . . . Installed . | . . . . Triggered . | . . . . Exploded 3 | . . . 3 Machines | -11 -10 -10 -10 ---------- Run | Scr Mat Min Exi Machines Disabled 1 | . . . 1 Max in Single Turn 1 | . . . 1 Machines Sabotaged . | . . . . Garrisons Compromised . | . . . . Overloaded Fab Kills . | . . . . Hacking | -11 -10 -10 -10 --------- Run | Scr Mat Min Exi Machines Accessed 11 | . 9 . 2 Terminals 6 | . 6 . . Fabricators . | . . . . Repair Stations 1 | . 1 . . Recycling Units 2 | . 2 . . Scanalyzers . | . . . . Garrison Access . | . . . . Total Hacks 25 | . 23 . 2 Successful 17 | . 15 . 2 Failed 8 | . 8 . . Catastrophic . | . . . . Database Lockouts . | . . . . Manual 10 | . 9 . 1 Terminals 17 | . 17 . . Fabricators . | . . . . Repair Stations 4 | . 4 . . Recycling Units 2 | . 2 . . Scanalyzers . | . . . . Garrison Access . | . . . . Terminal Hacks 10 | . 8 . 2 Record 2 | . 1 . 1 Prototype ID Bank 1 | . 1 . . Branch Access Points 1 | . 1 . . Emergency Access Points 1 | . 1 . . Locate Traps 1 | . 1 . . Hauler Manifests 2 | . 2 . . Zone Layout 1 | . 1 . . EX-Prototype ID Bank 1 | . . . 1 Fabricator Hacks . | . . . . Repair Station Hacks 4 | . 4 . . Scan Component 2 | . 2 . . Repair 2 | . 2 . . Recycling Unit Hacks . | . . . . Scanalyzer . | . . . . Garrison Access Hacks . | . . . . Unauthorized Hacks 3 | . 3 . . Terminals 1 | . 1 . . Track 1 | . 1 . . Fabricators . | . . . . Repair Stations . | . . . . Recycling Units 2 | . 2 . . Tunnel 2 | . 2 . . Scanalyzers . | . . . . Garrison Access . | . . . . Data Cores Recovered . | . . . . Used . | . . . . Hacking Detections 6 | . 6 . . Full Trace Events 1 | . 1 . . Feedback Events . | . . . . Feedback Blocked . | . . . . Robot Schematics Acquired . | . . . . Robots Built . | . . . . Authchips . | . . . . Time . | . . . . Total Robot Build Rating . | . . . . Part Schematics Acquired . | . . . . Parts Built . | . . . . Authchips . | . . . . Time . | . . . . Total Part Build Rating . | . . . . Parts Repaired 2 | . 2 . . Time 52 | . 52 . . Parts Recycled . | . . . . Recycled Matter . | . . . . Retrieved Matter . | . . . . Retrieved Components . | . . . . Parts Scanalyzed . | . . . . Part Schematics Acquired . | . . . . Parts Damaged . | . . . . Bothacking | -11 -10 -10 -10 ------------ Run | Scr Mat Min Exi Used RIF Installer . | . . . . Robots Hacked . | . . . . Non-combat . | . . . . Combat . | . . . . Robot Hacks Applied . | . . . . Relay Couplers Released . | . . . . Robots Rewired . | . . . . Allies Hacked . | . . . . Hacks Repelled . | . . . . Allies | -11 -10 -10 -10 -------- Run | Scr Mat Min Exi Total Allies 1 | . . 1 . Largest Group 1 | . . 1 1 Highest-Rated Group 31 | . . 31 31 Highest-Rated Ally 31 | . . 31 31 Total Orders . | . . . . Ally Attacks . | . . . . Total Damage . | . . . . Kills . | . . . . Allies Corrupted . | . . . . Allies Melted . | . . . . Intel | -11 -10 -10 -10 ------- Run | Scr Mat Min Exi Robot Analysis Total . | . . . . Derelict Logs Recovered 2 | . . 2 . Drone Launches . | . . . . Drone Recoveries . | . . . . Exploration | -11 -10 -10 -10 ------------- Run | Scr Mat Min Exi Turns Passed 2596 | 1 894 605 1096 Spaces Moved 1313 | 1 400 362 550 Core . | . . . . Treads 1254 | . 342 362 550 Legs 59 | 1 58 . . Wheels . | . . . . Hover . | . . . . Flight . | . . . . Fastest Speed 120 | 120 120 160 160 Average Speed 164 | 120 154 160 174 Slowest Speed 560 | 120 160 160 560 Overloaded Moves . | . . . . Propulsion Burnouts . | . . . . Robots Hopped . | . . . . Cave-ins Triggered . | . . . . Exploration Rate (%) 52 | 2 67 72 68 Regions Visited 3 Branch Regions 2 Pre-discovered Areas 4 | . 2 1 1 Known Exits Taken 1 | . 1 . . Unknown Exits Taken 2 | 1 . 1 . Scrap Searched 2 | . . 2 . Spaces Dug . | . . . . Terrain Destroyed 108 | . 65 35 8 Melee . | . . . . Projectile . | . . . . AOE 108 | . 65 35 8 Terrain Rammed . | . . . . Walls Destroyed . | . . . . Machines Disabled . | . . . . Actions | -11 -10 -10 -10 --------- Run | Scr Mat Min Exi Total 1616 | 2 568 386 660 Wait 132 | . 76 10 46 Move 1310 | . 399 361 550 Hop . | . . . . Pick Up 32 | . 13 4 15 Fast Attach 7 | . 4 . 3 Attach 7 | . 3 . 4 Detach . | . . . . Swap 12 | . 8 2 2 Drop 24 | 2 6 5 11 Fire 66 | . 59 4 3 Melee 26 | . . . 26 Ram . | . . . . Kick . | . . . . Crush . | . . . . Escape Stasis . | . . . . Rewire . | . . . . Trap . | . . . . Miscellaneous . | . . . . Route ------- -11/Scrapyard -10/Materials (discovered 2 exits: [*Mat] / *Min) -10/Mines (discovered 2 exits: [*Mat] / *Exi) -10/Exiles History --------- Turn | Location | Event 2 | -11/Scrapyard | Discovered new exit (range 0) 2 | -11/Scrapyard | Entered Materials 24 | -10/Materials | Identified exit to Mines 311 | -10/Materials | Build established: Mutant 456 | -10/Materials | Discovered new exit (range 13) 578 | -10/Materials | Repaired Lgt. Treads 605 | -10/Materials | Repaired Lgt. Treads 896 | -10/Materials | Entered Mines 908 | -10/Mines | Met a Derelict bent on vengeance 921 | -10/Mines | Learned location of Zion (-6) 1024 | -10/Mines | A weapon hastily lodged in a ceiling crevice suddenly fell to the ground 1062 | -10/Mines | Learned 2 Materials zone layouts 1062 | -10/Mines | Discovered new exit (range 8) 1138 | -10/Mines | Joined a pair of Derelicts in attacking an 0b10 outpost 1468 | -10/Mines | Received a Mining Laser from a helpful Derelict 1494 | -10/Mines | Deemed a non-threat by the Exiles lab entrance 1494 | -10/Mines | Discovered new exit (range 5) 1501 | -10/Mines | Entered Exiles 1501 | -10/Exiles | Accompanied by 1 ally 1545 | -10/Exiles | Met 8R-AWN 1570 | -10/Exiles | Met EX-HEX 1634 | -10/Exiles | Met EX-DEC 1671 | -10/Exiles | Met EX-BIN 1697 | -10/Exiles | Aligned with FarCom system 1698 | -10/Exiles | Given EX-Vault access code 1737 | -10/Exiles | Opened EX-Vault 1746 | -10/Exiles | Found Longsword +1 1778 | -10/Exiles | Warned to stay clear of 0b10 Research branches 2446 | -10/Exiles | Attacked by the Exiles 2564 | -10/Exiles | Core integrity fell below 50% 2586 | -10/Exiles | Core integrity fell below 20% 2597 | -10/Exiles | Destroyed by 8R-AWN with 8R-AWN's Boregun Last Messages --------------- 02552_ HV Slug penetrates Earth. 02552_ Penetrated by HV Slug. 02557_ Destroyed Prototype Protection. 02559_ Penetrated by HV Slug. 02563_ Critical hit (Destroy). 02563_ Lgt. Armor Plating destroyed. 02563_ Penetrated by HV Slug. 02570_ HV Slug penetrates Wall. 02571_ The unstable cave ceiling collapses. 02572_ Penetrated by HV Slug. 02577_ Critical hit (Destroy). 02577_ Penetrated by HV Slug. 02577_ Critical hit (Destroy). 02577_ Imp. Ion Engine destroyed. 02579_ Penetrated by HV Slug. 02589_ HV Slug penetrates Wall. 02589_ Machine disabled. 02589_ Penetrated by HV Slug. 02591_ 8R-AWN Prototype Device severed. 02593_ Penetrated by HV Slug. Map ----- +----------------------------------------------------+ | ?????????????????????????????????????????????????? | | ?????????????????????????????????????????????????? | | ?????????????????????????????????????????????????? | | ?????????????????????????????????????????????????? | | ?????????????????????????????????????????????????? | | ?????????????????????????????????????????????????? | | ?????????????????????????????????????????????????? | | ?????????????????????????????????????????????????? | | ?????????????????????????????????????????????????? | | ?????????????????????????????????????????????????? | | ?????????????????????????????????????????????????? | | ?????????????????????????????????????????????????? | | ?????????????????????????????????????????????????? | | ?????????????????????????????????????????????????? | | ?????????????????????????????????????????????????? | | ?????????????? ??????????????#######?????????????? | | ????????????? ######???????#!!! "#?????????????? | | ????????????? #""#??????# "#?????????????? | | ????????????? ??????# "#?????????????? | | ?????????????" #????## ""#????????????## | | ?????????????" ##### ""#???????????? | | ??????????????# ##" ""#????????????" | | ???????????????# ;"" #??????????????" | | ??????????????????# ####??????????"" | | ???????????????????### # ##?????????"" | | ?????????????????????###g@ ?????? | | ???????????????########" # #???????????" | | ???????????????#!!!""""" #"#?????????# | | ???????????????# "###" ;####???### | | ???????????????#! "#?## "#####X# | | ???????????????#! !##??#" | | ???????????????#[!""""""#;#???#"# % | | ???????????????########## #???#### * | | ????????????????????????# #??????### ! | | ????????????????????????##?????????### | | ?????????????????????????????????????## | | ??????????????????????????????????????## | | ???????????????????????????????????????##" | | ????????????????????????????????????????#"" | | ???????????????????????????????????????##" | | ???????????????????????????????????????#"" | | ???????????????????????????????????????#""" | | ??????????????????????????????????????#""" | | ??????????????????????????????????????#""" | | ??????????????????????????????????????#"" | | ??????????????????????????????????????#""" | | ??????????????????????????????????????#"" | | ??????????????????????????????????????##"" | | ???????????????????????????????????????#"""" | | ????????????????????????????????????????# | +----------------------------------------------------+ Best States ------------- Heat Dissipation 25 Energy Generation 12 Energy Capacity 265 Matter Stores 300 Matter Capacity 300 Sight Range 16 Terrain Scan Density 10 Armor Coverage 150 Evasion (%) 55 Recoil Reduction 2 Item Schematics ----------------- None Robot Schematics ------------------ None Fabricated ------------ Nothing Alien Tech Used ----------------- None Achievements -------------- None Challenges ------------ None Game ------ Seed BoreHardlightShredder Manual? 0 Play Time 00:13:04 Cumulative 401.8 hours Start 2021.10.25 @ 02:30:19 End 2021.10.25 @ 02:42:22 Sessions 1 Manual Loads 0 Difficulty Rogue Special Mode None Game No. 409 Rogue 409 Adventurer 0 Explorer 0 Win Type - Total 7 Types 6/0/0/1/0/0/0/0/0 Lore% 79 Gallery% 91 Achievement% 69 Wizard Run 0 Options --------- ASCII 0 Keyboard 0 Movement Mouse Keybinds 1 Fullscreen 2 Font 24/Smallcaps Map View 76x50 Tactical HUD 1 Map Filters NONE Filters NONE Steam 1 RUN: cc67bfbf-31dc-4887-b6f0-047c387f66c8